fUSD/lending_fUSD_20240328
["ID","MTS","AMOUNT","RATE_DAILY","PERIOD"]
[320869664,1711653052400,-1581.66,0.00049863,120]
[320869665,1711653052409,-1263.33,0.00049863,120]
[320869666,1711653052418,-500.0,0.00049863,120]
[320869667,1711653052428,-500.0,0.00049863,7]
[320869668,1711653052437,-904.8,0.00049863,120]
[320869669,1711653052447,-193.87602369,0.00049863,120]
[320869670,1711653052456,-7966.23,0.00049863,120]
[320869671,1711653052465,-1156.06,0.00049863,120]
[320869672,1711653052474,-683.86,0.00049863,120]
[320869673,1711653052484,-1839.12,0.00049863,120]
[320869674,1711653052493,-500.0,0.00049863,120]
[320869675,1711653052503,-2563.57,0.00049863,120]
[320869676,1711653052512,-619.98,0.00049863,120]
[320869677,1711653052522,-500.0,0.00049863,120]
[320869678,1711653052531,-845.54,0.00049863,120]
[320869679,1711653052540,-690.44,0.00049863,120]
[320869680,1711653052549,-1468.82,0.00049863,120]
[320869681,1711653052558,-2031.11,0.00049863,120]
[320869682,1711653052568,-560.26,0.00049863,120]
[320869683,1711653052577,-1273.21,0.00049863,120]
[320869684,1711653052586,-500.0,0.00049863,120]
[320869685,1711653052595,-2117.97,0.00049863,120]
[320869686,1711653052605,-500.0,0.00049863,120]
[320869687,1711653052613,-500.0,0.00049863,120]
[320869688,1711653052622,-1872.54,0.00049863,120]
[320869689,1711653052632,-1120.45,0.00049863,120]
[320869690,1711653052641,-500.0,0.00049863,120]
[320869691,1711653052650,-907.87,0.00049863,120]
[320869692,1711653052659,-541.05,0.00049863,120]
[320869693,1711653052667,-837.51,0.00049863,120]
[320869694,1711653052677,-1017.6,0.00049863,120]
[320869695,1711653052686,-289.56853329,0.00049863,120]
[320869696,1711653053492,-1054.57264,0.00049863,120]
[320869697,1711653053507,-5693.75882671,0.00049863,120]
[320869698,1711653053517,-500.0,0.00049863,120]
[320869699,1711653053527,-500.0,0.00049863,120]
[320869700,1711653053536,-1375.23,0.00049863,120]
[320869701,1711653053545,-980.83,0.00049863,120]
[320869702,1711653053554,-1479.42,0.00049863,120]
[320869703,1711653053563,-850.51,0.00049863,120]
[320869704,1711653053572,-1323.39,0.00049863,120]
[320869705,1711653053582,-500.0,0.00049863,120]
[320869706,1711653053591,-500.0,0.00049863,120]
[320869707,1711653053601,-500.0,0.00049863,120]
[320869708,1711653053610,-735.75,0.00049863,120]
[320869709,1711653053619,-500.0,0.00049863,120]
[320869710,1711653053628,-1056.13,0.00049863,120]
[320869711,1711653053637,-1272.45,0.00049863,120]
[320869712,1711653053646,-324.51303611,0.00049863,120]
[320869713,1711653053690,-500.0,0.00049315,120]
[320869714,1711653053699,-700.38,0.00049315,120]
[320869715,1711653053710,-1560.03696389,0.00049863,120]
[320869716,1711653053719,-500.0,0.00049863,120]
[320869717,1711653053728,-500.0,0.00049863,120]
[320869718,1711653053737,-1447.81,0.00049863,120]
[320869719,1711653053746,-2038.51,0.00049863,120]
[320869720,1711653053756,-500.0,0.00049863,120]
[320869721,1711653053765,-1430.07,0.00049863,120]
[320869722,1711653053774,-1415.36,0.00049863,120]
[320869723,1711653053783,-908.89,0.00049863,120]
[320869724,1711653053793,-1309.86,0.00049863,120]
[320869725,1711653053802,-1949.0,0.00049863,120]
[320869726,1711653053812,-500.0,0.00049863,120]
[320869727,1711653053821,-500.0,0.00049863,120]
[320869728,1711653053830,-603.03,0.00049863,120]
[320869729,1711653053839,-2658.8,0.00049863,120]
[320869730,1711653053849,-500.0,0.00049863,120]
[320869731,1711653053858,-1207.97,0.00049863,120]
[320869732,1711653053867,-554.28,0.00049863,120]
[320869733,1711653053876,-1605.57,0.00049863,120]
[320869734,1711653053885,-1001.37,0.00049863,120]
[320869735,1711653053895,-1884.97,0.00049863,120]
[320869736,1711653053904,-500.0,0.00049863,120]
[320869737,1711653053913,-771.31,0.00049863,120]
[320869738,1711653053922,-3789.61,0.00049863,120]
[320869739,1711653053931,-500.0,0.00049863,80]
[320869740,1711653053939,-1115.38,0.00049863,120]
[320869741,1711653053948,-3438.84,0.00049863,120]
[320869742,1711653053957,-1284.65,0.00049863,120]
[320869743,1711653053970,-13556.71,0.00049863,120]
[320869744,1711653053979,-534.03,0.00049863,120]
[320869745,1711653053988,-972.41,0.00049863,120]
[320869746,1711653053998,-714.12,0.00049863,120]
[320869747,1711653054007,-2023.65,0.00049863,120]
[320869748,1711653054016,-500.0,0.00049863,120]
[320869749,1711653054025,-500.0,0.00049863,120]
[320869750,1711653054034,-2751.76,0.00049863,120]
[320869751,1711653054043,-500.0,0.00049863,120]
[320869752,1711653054053,-100.56374398,0.00049863,120]
[320869753,1711653054065,-399.43625602,0.00049863,120]
[320869754,1711653054075,-855.84,0.00049863,120]
[320869755,1711653054084,-3.80977089,0.00049863,120]
[320869756,1711653054112,-2169.23710519,0.00049863,120]
[320869757,1711653059241,7972.9650663,0.0002,2]
[320869761,1711653728860,-155.0,0.00026999,3]
[320869762,1711653728889,-187.41656572,0.00027,2]
[320869861,1711654232209,-84.2451925,0.00028683,2]
[320869864,1711654232232,-94.07448585,0.00028683,2]
[320869866,1711654232242,-151.81814753,0.00028683,2]
[320869868,1711654232251,-164.36425821,0.00028782,2]
[320869870,1711654232263,-346.48303694,0.00028782,2]
[320869872,1711654232281,-1375.21974579,0.00028782,2]
[320869874,1711654232291,-7188.66409541,0.00028783,5]
[320869875,1711654232301,-155.0,0.00028999,3]
[320869876,1711654232311,-350.0,0.00029,3]
[320869877,1711654232320,-440.12783223,0.000295,3]
[320869878,1711654232330,-355.44776517,0.0003,4]
[320869879,1711654232339,-400.0,0.00031,3]
[320869880,1711654232349,-450.0,0.00033,3]
[320869881,1711654232358,-500.0,0.00035,3]
[320869882,1711654232368,-499.99,0.00035,2]
[320869883,1711654232378,-550.0,0.00037,3]
[320869884,1711654232387,-600.0,0.00039,3]
[320869885,1711654232397,-650.0,0.00041,3]
[320869886,1711654232407,-700.0,0.00043,3]
[320869887,1711654232417,-464.94,0.00043854,2]
[320869888,1711654232427,-174.0,0.000445,2]
[320869889,1711654232436,-750.0,0.00045,3]
[320869890,1711654232447,-151.86,0.00045587,15]
[320869891,1711654232456,-565.17,0.00045632,120]
[320869892,1711654232466,-419.84,0.00045651,2]
[320869893,1711654232476,-250.0,0.00045769,120]
[320869894,1711654232486,-250.0,0.00045865,112]
[320869895,1711654232496,-656.08,0.00045911,2]
[320869896,1711654232505,-18303.58,0.00046011,2]
[320869897,1711654232515,-464.94,0.00046118,2]
[320869898,1711654232525,-569.5,0.00046138,120]
[320869899,1711654232536,-215.75,0.00046959,2]
[320869900,1711654232546,-215.75,0.00046971,2]
[320869901,1711654232556,-215.75,0.00046984,2]
[320869902,1711654232566,-215.75,0.00046996,2]
[320869903,1711654232576,-800.0,0.00047,3]
[320869904,1711654232586,-215.75,0.00047008,2]
[320869905,1711654232596,-215.75,0.00047021,2]
[320869906,1711654232606,-215.75,0.00047033,2]
[320869907,1711654232616,-215.75,0.00047045,2]
[320869908,1711654232626,-215.75,0.00047058,2]
[320869909,1711654232637,-215.75,0.0004707,2]
[320869910,1711654232646,-215.75,0.00047082,2]
[320869911,1711654232655,-215.75,0.00047095,2]
[320869912,1711654232666,-215.75,0.00047107,2]
[320869913,1711654232679,-215.75,0.00047119,2]
[320869914,1711654232689,-215.75,0.00047132,2]
[320869915,1711654232699,-215.75,0.00047144,2]
[320869916,1711654232709,-215.75,0.00047156,2]
[320869917,1711654232722,-215.75,0.00047169,2]
[320869918,1711654232731,-215.75,0.00047181,2]
[320869919,1711654232741,-215.75,0.00047194,2]
[320869920,1711654232750,-943.29,0.00047358,2]
[320869921,1711654232761,-3302.34182559,0.00047368,2]
[320869922,1711654232771,-151.8,0.00048002,30]
[320869923,1711654232783,-464.94,0.00048381,2]
[320869924,1711654232792,-1000.0,0.00048494,2]
[320869925,1711654232803,-151.8,0.00048573,30]
[320869926,1711654232813,-656.08,0.00048651,2]
[320869927,1711654232822,-151.8,0.0004868,30]
[320869928,1711654232832,-159.52589014,0.0004875,30]
[320869929,1711654232842,-151.8,0.00048772,30]
[320869930,1711654232852,-151.8,0.0004879,30]
[320869931,1711654232862,-850.0,0.00049,3]
[320869932,1711654232871,-1584.69193035,0.00049215,2]
[320869933,1711654232881,-154.80107592,0.00049215,14]
[320869934,1711654232891,-2277.72255648,0.00049215,2]
[320869935,1711654232901,-181.0989265,0.00049215,2]
[320869936,1711654232911,-9924.455,0.00049215,2]
[320869937,1711654232921,-1719.2658,0.00049215,2]
[320869938,1711654232931,-28511.9316,0.00049215,2]
[320869939,1711654232941,-491.26,0.00049305,30]
[320869940,1711654232951,-162.96,0.00049305,2]
[320869941,1711654232961,-500.0,0.00049315,120]
[320869942,1711654232970,-500.0,0.00049315,120]
[320869943,1711654232981,-500.0,0.00049315,120]
[320869944,1711654232990,-500.0,0.00049315,120]
[320869945,1711654232999,-979.9,0.00049315,120]
[320869946,1711654233009,-500.0,0.00049315,120]
[320869947,1711654233020,-500.0,0.00049315,120]
[320869948,1711654233032,-500.0,0.00049315,120]
[320869949,1711654233042,-500.0,0.00049315,120]
[320869950,1711654233052,-553.01,0.00049315,120]
[320869951,1711654233062,-500.0,0.00049315,120]
[320869952,1711654233074,-500.0,0.00049315,120]
[320869953,1711654233083,-500.0,0.00049315,120]
[320869954,1711654233094,-500.0,0.00049315,120]
[320869955,1711654233104,-500.0,0.00049315,120]
[320869956,1711654233114,-500.0,0.00049315,120]
[320869957,1711654233125,-500.0,0.00049315,120]
[320869958,1711654233134,-586.01,0.00049315,120]
[320869959,1711654233144,-500.0,0.00049315,120]
[320869960,1711654233154,-500.0,0.00049315,120]
[320869961,1711654233164,-500.0,0.00049315,120]
[320869962,1711654233173,-500.0,0.00049315,120]
[320869963,1711654233183,-687.54,0.00049315,120]
[320869964,1711654233193,-500.0,0.00049315,120]
[320869965,1711654233203,-500.0,0.00049315,120]
[320869966,1711654233212,-500.0,0.00049315,120]
[320869967,1711654233222,-500.0,0.00049315,120]
[320869968,1711654233232,-500.0,0.00049315,120]
[320869969,1711654233242,-500.0,0.00049315,120]
[320869970,1711654233252,-500.0,0.00049315,120]
[320869971,1711654233262,-500.0,0.00049315,120]
[320869972,1711654233272,-500.0,0.00049315,120]
[320869973,1711654233282,-500.0,0.00049315,120]
[320869974,1711654233292,-500.0,0.00049315,120]
[320869975,1711654233301,-500.0,0.00049315,120]
[320869976,1711654233310,-500.0,0.00049315,120]
[320869977,1711654233319,-500.0,0.00049315,120]
[320869978,1711654233330,-284.97072112,0.00049315,120]
[320869980,1711654237931,-311.19927888,0.00049315,120]
[320869981,1711654237940,-500.0,0.00049315,120]
[320869982,1711654237950,-500.0,0.00049315,120]
[320869983,1711654237959,-516.77,0.00049315,120]
[320869984,1711654237969,-226.8205868,0.00049315,120]
[320869985,1711654237982,-369.8794132,0.00049315,120]
[320869986,1711654237991,-500.0,0.00049315,120]
[320869987,1711654238001,-156.12058635,0.00049315,120]
[320869988,1711654238054,-343.87941365,0.00049315,120]
[320869989,1711654238064,-631.71,0.00049315,120]
[320869990,1711654238073,-500.0,0.00049315,120]
[320869991,1711654238083,-500.0,0.00049315,120]
[320869992,1711654238093,-500.0,0.00049315,120]
[320869993,1711654238102,-721.3,0.00049315,120]
[320869994,1711654238112,-500.0,0.00049315,120]
[320869995,1711654238124,-500.0,0.00049315,30]
[320869996,1711654238134,-500.0,0.00049315,120]
[320869997,1711654238144,-500.0,0.00049315,120]
[320869998,1711654238154,-515.3,0.00049315,120]
[320870000,1711654238164,-500.0,0.00049315,120]
[320870002,1711654238173,-788.05947002,0.00049315,120]
[320870004,1711654238190,-169.56052998,0.00049315,120]
[320870006,1711654238200,-500.0,0.00049315,120]
[320870008,1711654238211,-500.0,0.00049315,120]
[320870010,1711654238220,-430.43947002,0.00049315,120]
[320870197,1711654240044,-507.72052998,0.00049315,120]
[320870200,1711654240055,-724.18,0.00049315,120]
[320870202,1711654240064,-500.0,0.00049315,120]
[320870204,1711654240073,-500.0,0.00049315,120]
[320870206,1711654240083,-500.0,0.00049315,120]
[320870208,1711654240092,-500.0,0.00049315,120]
[320870210,1711654240100,-500.0,0.00049315,120]
[320870212,1711654240110,-217.9,0.00049315,120]
[320870214,1711654240119,-580.68,0.00049315,120]
[320870216,1711654240128,-448.74110839,0.00049315,120]
[320870366,1711654241859,-104.57889161,0.00049315,120]
[320870367,1711654241870,-744.24,0.00049315,120]
[320870368,1711654241879,-500.0,0.00049315,120]
[320870369,1711654241889,-67.02110839,0.00049315,120]
[320870370,1711654241901,-432.97889161,0.00049315,120]
[320870371,1711654241910,-500.0,0.00049315,120]
[320870372,1711654241920,-263.84625531,0.00049315,120]
[320870373,1711654241975,-236.15374469,0.00049315,120]
[320870374,1711654241985,-474.90454805,0.00049315,120]
[320870434,1711654242875,-25.09545195,0.00049315,120]
[320870435,1711654242885,-323.81454789,0.00049315,120]
[320870436,1711654242930,-263.38545211,0.00049315,120]
[320870437,1711654242942,-500.000001,0.00049315,120]
[320870438,1711654242956,-500.0,0.00049315,120]
[320870439,1711654242967,-500.0,0.00049315,120]
[320870440,1711654242978,-627.29,0.00049315,120]
[320870441,1711654242990,-500.0,0.00049315,120]
[320870442,1711654243001,-670.97,0.00049315,120]
[320870443,1711654243012,-500.0,0.00049315,120]
[320870444,1711654243022,-500.0,0.00049315,120]
[320870445,1711654243033,-500.0,0.00049315,120]
[320870446,1711654243044,-511.34,0.00049315,120]
[320870447,1711654243055,-500.0,0.00049315,120]
[320870448,1711654243066,-559.42,0.00049315,120]
[320870449,1711654243076,-500.0,0.00049315,120]
[320870450,1711654243086,-1131.35,0.00049315,120]
[320870451,1711654243096,-500.0,0.00049315,120]
[320870452,1711654243107,-500.0,0.00049315,120]
[320870453,1711654243117,-500.0,0.00049315,120]
[320870454,1711654243128,-623.69,0.00049315,120]
[320870455,1711654243138,-500.0,0.00049315,120]
[320870456,1711654243148,-500.0,0.00049315,120]
[320870457,1711654243158,-643.65,0.00049315,120]
[320870458,1711654243168,-500.0,0.00049315,120]
[320870459,1711654243178,-500.0,0.00049315,120]
[320870460,1711654243188,-500.0,0.00049315,120]
[320870461,1711654243199,-500.0,0.00049315,120]
[320870462,1711654243211,-1413.49,0.00049315,120]
[320870463,1711654243222,-791.7,0.00049315,120]
[320870464,1711654243233,-500.0,0.00049315,120]
[320870465,1711654243243,-500.0,0.00049315,120]
[320870466,1711654243254,-500.0,0.00049315,120]
[320870467,1711654243265,-946.83,0.00049315,120]
[320870468,1711654243275,-707.54,0.00049315,120]
[320870469,1711654243286,-542.48,0.00049315,120]
[320870470,1711654243297,-605.27,0.00049315,120]
[320870471,1711654243309,-500.0,0.00049315,120]
[320870472,1711654243319,-1113.47,0.00049315,120]
[320870473,1711654243329,-562.11,0.00049315,120]
[320870474,1711654243339,-1936.76,0.00049315,120]
[320870475,1711654243349,-500.0,0.00049315,120]
[320870476,1711654243359,-632.99,0.00049315,120]
[320870477,1711654243369,-500.0,0.00049315,120]
[320870479,1711654243379,-500.0,0.00049315,7]
[320870481,1711654243388,-819.94,0.00049315,120]
[320870483,1711654243398,-500.0,0.00049315,120]
[320870485,1711654243408,-9510.25,0.00049315,120]
[320870487,1711654243417,-6970.45,0.00049315,120]
[320870489,1711654243427,-666.24,0.00049315,120]
[320870491,1711654243437,-1383.95,0.00049315,120]
[320870493,1711654243446,-879.97,0.00049315,120]
[320870495,1711654243455,-500.0,0.00049315,120]
[320870497,1711654243465,-311.78960386,0.00049315,120]
[320870500,1711654243474,-1777.22,0.00049315,120]
[320870502,1711654243484,-500.0,0.00049315,120]
[320870504,1711654243493,-739.85,0.00049315,120]
[320870506,1711654243502,-500.0,0.00049315,120]
[320870508,1711654243511,-2243.13,0.00049315,120]
[320870510,1711654243521,-1157.97,0.00049315,120]
[320870512,1711654243530,-500.0,0.00049315,120]
[320870514,1711654243539,-788.96,0.00049315,120]
[320870516,1711654243549,-500.0,0.00049315,80]
[320870518,1711654243558,-501.9,0.00049315,120]
[320870520,1711654243568,-500.0,0.00049315,120]
[320870522,1711654243578,-1890.98,0.00049315,120]
[320870524,1711654243587,-500.0,0.00049315,120]
[320870526,1711654243596,-500.0,0.00049315,120]
[320870528,1711654243605,-500.0,0.00049315,120]
[320870530,1711654243615,-312.66781487,0.00049315,120]
[320870532,1711654243624,-500.0,0.00049315,120]
[320870533,1711654243633,-795.28,0.00049315,120]
[320870536,1711654243643,-842.17,0.00049315,120]
[320870538,1711654243652,-924.12,0.00049315,120]
[320870540,1711654243661,-2454.27,0.00049315,120]
[320870542,1711654243670,-500.0,0.00049315,120]
[320870544,1711654243683,-858.23,0.00049315,120]
[320870546,1711654243692,-500.0,0.00049315,120]
[320870548,1711654243701,-500.0,0.00049315,120]
[320870550,1711654243710,-527.65,0.00049315,120]
[320870552,1711654243721,-346.35568032,0.00049315,120]
[320870553,1711654243730,-643.79,0.00049315,120]
[320870555,1711654243739,-3315.91,0.00049315,120]
[320870556,1711654243748,-500.0,0.00049315,120]
[320870557,1711654243759,-890.4,0.00049315,120]
[320870558,1711654243769,-11862.12,0.00049315,120]
[320870559,1711654243779,-1609.23,0.00049315,120]
[320870560,1711654243789,-1238.44,0.00049315,120]
[320870561,1711654243798,-500.0,0.00049315,120]
[320870562,1711654243809,-1294.5,0.00049315,120]
[320870563,1711654243818,-1705.38,0.00049315,120]
[320870564,1711654243827,-689.79,0.00049315,120]
[320870565,1711654243837,-604.13,0.00049315,120]
[320870566,1711654243847,-732.82,0.00049315,120]
[320870567,1711654243857,-500.0,0.00049315,120]
[320870568,1711654243868,-500.0,0.00049315,120]
[320870569,1711654243878,-500.0,0.00049315,120]
[320870570,1711654243887,-500.0,0.00049315,120]
[320870571,1711654243902,-2259.06,0.00049315,120]
[320870572,1711654243911,-1404.87,0.00049315,120]
[320870573,1711654243921,-500.0,0.00049315,120]
[320870574,1711654243930,-654.72,0.00049315,120]
[320870575,1711654243940,-1203.32,0.00049315,120]
[320870576,1711654243949,-500.0,0.00049315,120]
[320870577,1711654243958,-674.89,0.00049315,120]
[320870578,1711654243968,-972.97,0.00049315,120]
[320870579,1711654243977,-1638.47,0.00049315,120]
[320870580,1711654243986,-500.0,0.00049315,120]
[320870581,1711654244042,-1197.69,0.00049315,120]
[320870582,1711654244054,-1146.13,0.00049315,120]
[320870583,1711654244064,-500.0,0.00049315,120]
[320870584,1711654244074,-2025.89,0.00049315,120]
[320870585,1711654244083,-850.86,0.00049315,120]
[320870586,1711654244093,-500.0,0.00049315,120]
[320870587,1711654244103,-500.0,0.00049315,120]
[320870588,1711654244113,-1746.77,0.00049315,21]
[320870589,1711654244122,-6528.58,0.00049315,120]
[320870590,1711654244133,-1011.37,0.00049315,120]
[320870591,1711654244144,-500.0,0.00049315,120]
[320870592,1711654244154,-611.82,0.00049315,120]
[320870593,1711654244163,-500.0,0.00049315,120]
[320870594,1711654244173,-1251.31,0.00049315,120]
[320870595,1711654244182,-1947.41,0.00049315,120]
[320870596,1711654244191,-500.0,0.00049315,120]
[320870597,1711654244201,-500.0,0.00049315,120]
[320870598,1711654244211,-500.0,0.00049315,120]
[320870599,1711654244221,-1180.36,0.00049315,120]
[320870600,1711654244230,-500.0,0.00049315,120]
[320870601,1711654244239,-1056.97,0.00049315,120]
[320870602,1711654244249,-1331.4,0.00049315,120]
[320870603,1711654244258,-975.96,0.00049315,120]
[320870604,1711654244267,-1639.16,0.00049315,120]
[320870605,1711654244277,-1413.83,0.00049315,120]
[320870606,1711654244286,-1443.58,0.00049315,120]
[320870607,1711654244297,-3008.98,0.00049315,120]
[320870608,1711654244306,-1770.69,0.00049315,120]
[320870609,1711654244315,-500.0,0.00049315,120]
[320870610,1711654244324,-4892.83,0.00049315,120]
[320870611,1711654244333,-500.0,0.00049315,120]
[320870612,1711654244343,-2307.46,0.00049315,120]
[320870613,1711654244352,-1189.84,0.00049315,120]
[320870614,1711654244362,-500.0,0.00049315,120]
[320870615,1711654244371,-1566.88,0.00049315,120]
[320870616,1711654244380,-500.0,0.00049315,120]
[320870617,1711654244389,-734.05,0.00049315,120]
[320870618,1711654244398,-1080.25,0.00049315,120]
[320870619,1711654244407,-1910.03,0.00049315,120]
[320870620,1711654244416,-500.0,0.00049315,120]
[320870621,1711654244426,-1059.19,0.00049315,120]
[320870622,1711654244435,-580.03,0.00049315,120]
[320870623,1711654244445,-748.86,0.00049315,120]
[320870624,1711654244453,-500.0,0.00049315,120]
[320870625,1711654244463,-1140.41,0.00049315,120]
[320870626,1711654244472,-1387.69,0.00049315,120]
[320870627,1711654244481,-3518.8,0.00049315,120]
[320870628,1711654244490,-2127.46,0.00049315,120]
[320870629,1711654244499,-1095.63,0.00049315,120]
[320870630,1711654244508,-1517.06,0.00049315,120]
[320870631,1711654244518,-671.2,0.00049315,120]
[320870632,1711654244527,-500.0,0.00049315,120]
[320870633,1711654244536,-1443.59,0.00049315,120]
[320870634,1711654244546,-500.0,0.00049315,120]
[320870635,1711654244556,-500.0,0.00049315,120]
[320870636,1711654244566,-1340.81,0.00049315,120]
[320870637,1711654244575,-500.0,0.00049315,120]
[320870638,1711654244585,-819.64,0.00049315,120]
[320870639,1711654244594,-2293.07,0.00049315,120]
[320870640,1711654244604,-2185.87,0.00049315,120]
[320870641,1711654244613,-500.0,0.00049315,2]
[320870642,1711654244622,-528.35,0.00049315,120]
[320870643,1711654244631,-608.23,0.00049315,120]
[320870644,1711654244641,-2249.45,0.00049315,120]
[320870645,1711654244649,-939.07,0.00049315,120]
[320870646,1711654244658,-1228.65,0.00049315,120]
[320870647,1711654244667,-1260.18,0.00049315,120]
[320870648,1711654244676,-1127.43,0.00049315,120]
[320870649,1711654244691,-795.3,0.00049315,120]
[320870650,1711654244700,-845.96,0.00049315,120]
[320870651,1711654244709,-500.0,0.00049315,120]
[320870652,1711654244719,-181.0989265,0.00049352,2]
[320870653,1711654244730,-181.0989265,0.00049489,2]
[320870654,1711654244740,-307.47474683,0.00049489,2]
[320870655,1711654244750,-5000.0,0.00049489,3]
[320870656,1711654244760,-1002.78207323,0.000495,2]
[320870657,1711654244770,-500.0,0.00049588,120]
[320870658,1711654244781,-1272.35,0.00049588,120]
[320870659,1711654244793,-500.0,0.00049588,120]
[320870660,1711654244802,-500.0,0.00049588,120]
[320870661,1711654244811,-500.0,0.00049588,120]
[320870662,1711654244821,-500.0,0.00049588,120]
[320870663,1711654244830,-500.0,0.00049588,120]
[320870664,1711654244839,-368.0354208,0.00049588,120]
[320870665,1711654244849,-500.0,0.00049588,120]
[320870666,1711654244858,-500.0,0.00049588,2]
[320870667,1711654244867,-500.0,0.00049588,120]
[320870668,1711654244876,-500.0,0.00049588,120]
[320870669,1711654244885,-500.0,0.00049588,120]
[320870670,1711654244895,-500.0,0.00049588,120]
[320870671,1711654244904,-560.46188447,0.00049588,120]
[320870672,1711654244924,-500.0,0.00049588,120]
[320870673,1711654244937,-588.96,0.00049588,120]
[320870674,1711654244946,-522.0860029,0.00049588,120]
[320870675,1711654244956,-296.77838168,0.00049588,120]
[320870676,1711654244966,-500.0,0.00049588,120]
[320870677,1711654244975,-500.0,0.00049588,120]
[320870678,1711654244984,-500.0,0.00049588,120]
[320870679,1711654244994,-876.2,0.00049588,120]
[320870680,1711654245004,-500.0,0.00049588,120]
[320870681,1711654245015,-500.0,0.00049588,120]
[320870682,1711654245025,-500.0,0.00049588,120]
[320870683,1711654245034,-1034.89,0.00049588,120]
[320870684,1711654245044,-1209.19,0.00049588,120]
[320870685,1711654245053,-1679.33,0.00049588,120]
[320870686,1711654245062,-500.0,0.00049588,120]
[320870687,1711654245073,-976.86,0.00049588,120]
[320870688,1711654245083,-500.0,0.00049588,120]
[320870689,1711654245092,-500.0,0.00049588,120]
[320870690,1711654245102,-1315.56,0.00049588,120]
[320870691,1711654245111,-245.35006358,0.00049588,120]
[320870692,1711654245123,-500.0,0.00049588,120]
[320870693,1711654245132,-1171.91,0.00049588,120]
[320870694,1711654245141,-1026.24,0.00049588,120]
[320870695,1711654245150,-1285.22,0.00049588,120]
[320870696,1711654245159,-500.0,0.00049588,120]
[320870697,1711654245169,-1853.23,0.00049588,120]
[320870698,1711654245178,-980.39,0.00049588,120]
[320870699,1711654245187,-500.0,0.00049588,120]
[320870700,1711654245196,-612.2171384,0.00049588,120]
[320870701,1711654245205,-724.52,0.00049588,120]
[320870702,1711654245214,-500.0,0.00049588,120]
[320870703,1711654245223,-1649.35,0.00049588,120]
[320870704,1711654245232,-1008.79,0.00049588,120]
[320870705,1711654245241,-500.0,0.00049588,120]
[320870706,1711654245251,-1158.94,0.00049588,120]
[320870707,1711654245260,-611.82,0.00049588,120]
[320870708,1711654245270,-981.16,0.00049588,120]
[320870709,1711654245279,-1045.29,0.00049588,120]
[320870710,1711654245289,-500.0,0.00049588,120]
[320870711,1711654245300,-1162.54,0.00049588,120]
[320870712,1711654245309,-1203.88,0.00049588,120]
[320870713,1711654245318,-458.531216,0.00049588,120]
[320870714,1711654245327,-1571.4,0.00049588,120]
[320870715,1711654245336,-352.0845038,0.00049588,120]
[320870716,1711654245346,-557.67,0.00049588,2]
[320870717,1711654245358,-1801.66,0.00049588,120]
[320870718,1711654245367,-7201.02,0.00049588,120]
[320870719,1711654245377,-500.0,0.00049589,120]
[320870720,1711654245386,-526.31946458,0.00049589,120]
[320870721,1711654245395,-500.0,0.00049589,120]